bitfinex/quotes_SOLUSD_20250924
["timestamp","ask_amount","ask_price","bid_price","bid_amount"]
[1758682623901,34.14743637,214.51,214.41,0.69]
[1758682624206,34.14743637,214.51,214.42,4.66374405]
[1758682624504,34.14743637,214.51,214.43,0.69]
[1758682624705,0.46,214.57,214.43,0.69]
[1758682624882,3.94551828,214.57,214.43,0.69]
[1758682625078,3.48551828,214.55,214.43,0.69]
[1758682625806,0.2,214.6,214.49,26.0]
[1758682626002,0.2,214.6,214.5,0.69]
[1758682626179,0.2,214.6,214.51,16.31625564]
[1758682626384,0.2,214.6,214.52,0.69]
[1758682628095,0.2,214.6,214.54,26.0]
[1758682628401,0.2,214.6,214.55,5.3509182]
[1758682628903,0.2,214.6,214.56,0.69]
[1758682629110,0.2,214.6,214.57,0.69]
[1758682629409,0.2,214.6,214.58,0.69]
[1758682629612,0.2,214.6,214.59,0.69]
[1758682630203,0.2,214.6,214.59,5.35004939]
[1758682630794,0.2,214.6,214.57,26.0]
[1758682631000,0.2,214.6,214.56,5.35054537]
[1758682631191,0.2,214.6,214.57,0.69]
[1758682631612,0.2,214.6,214.58,0.69]
[1758682631816,0.2,214.6,214.56,4.66054537]
[1758682632005,0.2,214.6,214.59,26.69]
[1758682632403,0.2,214.6,214.59,31.35004939]
[1758682633307,0.2,214.6,214.54,0.66]
[1758682633701,0.2,214.6,214.55,26.0]
[1758682634018,0.2,214.6,214.55,26.66]
[1758682634217,0.2,214.6,214.55,26.0]
[1758682634407,0.2,214.6,214.57,16.31169314]
[1758682634716,0.2,214.6,214.59,26.0]
[1758682635093,0.2,214.6,214.59,26.66]
[1758682635295,0.2,214.6,214.59,30.13822035]
[1758682636398,0.2,214.6,214.59,34.79826974]
[1758682637211,0.2,214.61,214.6,13.59559401]
[1758682637212,1e-08,214.61,214.6,13.59559401]
[1758682637416,1e-08,214.61,214.6,14.25559401]
[1758682637621,1e-08,214.61,214.6,0.66]
[1758682637922,1e-08,214.61,214.6,4.13822035]
[1758682639814,1e-08,214.61,214.6,17.73381436]
[1758682640503,0.2,214.69,214.64,26.0]
[1758682640703,0.2,214.69,214.68,3.47822035]
[1758682641104,0.2,214.69,214.68,4.13822035]
[1758682641317,0.2,214.69,214.68,5.31809577]
[1758682641521,0.2,214.69,214.68,8.79631612]
[1758682642615,0.2,214.69,214.68,22.39191013]
[1758682642816,0.2,214.81,214.75,3.47822035]
[1758682643205,0.2,214.81,214.77,3.47822035]
[1758682643713,0.2,214.81,214.77,0.66]
[1758682643917,0.2,214.81,214.78,3.47822035]
[1758682644532,0.2,214.81,214.78,4.13822035]
[1758682645410,0.2,214.81,214.79,5.31571022]
[1758682645610,0.2,214.81,214.8,3.47822035]
[1758682645936,0.2,214.81,214.8,26.0]
[1758682646232,0.2,214.81,214.8,30.13822035]
[1758682646611,0.2,214.88,214.84,26.0]
[1758682646814,0.2,214.88,214.87,3.47822035]
[1758682647323,0.2,214.88,214.87,8.13219717]
[1758682648026,0.2,214.88,214.87,8.79219717]
[1758682648529,0.2,214.88,214.87,8.13219717]
[1758682648726,0.1,214.91,214.9,29.47822035]
[1758682649429,0.1,214.91,214.9,30.65332712]
[1758682649631,0.1,214.91,214.9,34.13154747]
[1758682650432,0.1,214.91,214.88,3.47822035]
[1758682650633,0.1,214.91,214.9,3.47822035]
[1758682651018,0.1,214.91,214.9,4.13822035]
[1758682651423,0.1,214.91,214.9,8.79154747]
[1758682651623,1e-08,214.91,214.9,62.00714148]
[1758682653445,1e-08,214.91,214.9,5.31332712]
[1758682653635,1e-08,214.91,214.9,8.79154747]
[1758682655423,1e-08,214.91,214.9,22.38714148]
[1758682656240,1e-08,214.97,214.96,17.07381436]
[1758682656441,1e-08,214.97,214.96,56.65381436]
[1758682656661,1e-08,214.97,214.96,58.48747334]
[1758682657064,1e-08,214.97,214.96,44.89187933]
[1758682657940,1e-08,214.97,214.96,49.54390761]
[1758682660367,1e-08,214.97,214.96,44.23202828]
[1758682660573,1e-08,214.97,214.96,44.85187933]
[1758682661542,1e-08,214.97,214.96,9.96390761]
[1758682664148,1e-08,214.97,214.96,10.62390761]
[1758682664885,0.68000001,214.97,214.92,4.6528941]
[1758682665084,1e-08,214.97,214.96,26.0]
[1758682665260,1e-08,214.97,214.96,65.52]
[1758682665578,0.68000001,214.97,214.94,39.52]
[1758682665777,0.68,214.96,214.94,39.52]
[1758682666392,0.68,214.95,214.85,11.63594919]
[1758682666682,1e-08,214.97,214.89,5.31187933]
[1758682666972,1e-08,214.97,214.93,5.31187933]
[1758682667152,1e-08,214.97,214.94,39.5]
[1758682667861,0.68,214.96,214.85,11.63594919]
[1758682668064,0.68,214.95,214.87,5.31187933]
[1758682668258,0.68,214.95,214.88,4.65376023]
[1758682668461,0.68,214.95,214.89,39.5]
[1758682668661,5.33229082,214.95,214.89,39.5]
[1758682668857,1e-08,214.97,214.9,0.66]
[1758682669173,0.68,214.96,214.8,28.38612399]
[1758682669471,0.68,214.95,214.88,26.0]
[1758682669770,0.68,214.94,214.83,5.31484336]
[1758682669984,5.99187933,214.93,214.84,39.5]
[1758682670157,5.99187933,214.93,214.85,9.96628938]
[1758682670158,0.68,214.93,214.85,9.96628938]
[1758682670563,0.68,214.93,214.85,10.64628938]
[1758682670770,0.68,214.93,214.85,22.28231451]
[1758682671157,5.3327263,214.93,214.85,5.33441005]
[1758682671364,5.3327263,214.93,214.85,44.83441005]
[1758682671564,5.3327263,214.93,214.85,44.81441005]
[1758682671760,0.71,214.92,214.85,44.13441005]
[1758682672163,0.71,214.92,214.85,61.08231451]
[1758682673585,5.36301686,214.92,214.85,39.48]
[1758682673882,5.36290885,214.92,214.85,44.1343599]
[1758682675074,0.71,214.91,214.81,0.68]
[1758682675465,0.71,214.91,214.84,5.31187933]
[1758682675662,5.36246865,214.94,214.84,5.99187933]
[1758682676882,0.71,214.94,214.85,4.65441005]
[1758682677072,0.71,214.94,214.86,0.68]
[1758682677282,6.02187933,214.94,214.85,4.65441005]
[1758682677583,0.71,214.93,214.85,4.65441005]
[1758682677877,0.71,214.92,214.86,26.0]
[1758682678175,5.36295907,214.92,214.86,26.0]
[1758682678384,5.36295907,214.92,214.85,4.65441005]
[1758682678983,5.36295907,214.92,214.83,10.64650668]
[1758682679168,0.71,214.91,214.83,10.64650668]
[1758682679666,0.71,214.95,214.86,26.0]
[1758682679874,9.96424205,214.95,214.86,26.0]
[1758682680072,0.71,214.94,214.86,26.0]
[1758682680261,5.36266313,214.94,214.87,4.65397682]
[1758682680464,5.31187933,214.88,214.78,0.68]
[1758682680668,5.31187933,214.86,214.78,0.68]
[1758682680876,0.71,214.85,214.75,5.99187933]
[1758682681075,5.31187933,214.84,214.75,0.68]
[1758682681271,6.02187933,214.84,214.75,0.68]
[1758682681464,13.59559401,214.83,214.75,0.68]
[1758682681680,13.59559401,214.83,214.68,0.2]
[1758682681681,14.30559401,214.83,214.72,5.99187933]
[1758682681996,0.71,214.83,214.75,26.0]
[1758682682196,5.31187933,214.82,214.75,26.0]
[1758682682778,4.65527675,214.81,214.73,26.68]
[1758682683173,4.65527675,214.81,214.74,4.65661299]
[1758682683591,5.31187933,214.8,214.68,5.51187933]
[1758682683895,5.31187933,214.8,214.69,0.68]
[1758682683896,5.31187933,214.76,214.69,0.68]
[1758682684075,5.31187933,214.74,214.68,0.2]
[1758682684592,5.31187933,214.72,214.68,0.2]
[1758682684792,6.02187933,214.72,214.68,0.2]
[1758682684968,13.59559401,214.78,214.69,0.68]
[1758682684969,5.31187933,214.78,214.69,0.68]
[1758682685169,6.02187933,214.79,214.69,0.68]
[1758682685381,5.31187933,214.8,214.69,0.68]
[1758682685574,26.0,214.81,214.7,5.31187933]
[1758682685787,26.0,214.81,214.72,5.31187933]
[1758682685989,5.31187933,214.8,214.71,0.68]
[1758682686380,26.0,214.81,214.71,0.68]
[1758682686766,0.71,214.86,214.75,16.29802094]
[1758682686969,5.36430651,214.86,214.76,0.68]
[1758682687282,5.31187933,214.81,214.73,4.65695527]
[1758682687481,5.31187933,214.81,214.73,16.29948309]
[1758682687676,5.31187933,214.81,214.74,0.68]
[1758682687873,0.71,214.8,214.73,26.0]
[1758682688492,0.71,214.8,214.72,31.33717102]
[1758682688991,31.31187933,214.83,214.73,0.68]
[1758682689197,25.23107758,214.86,214.73,0.68]
[1758682689198,5.31187933,214.86,214.75,5.31187933]
[1758682689493,5.31187933,214.86,214.76,0.68]
[1758682690293,5.31187933,214.84,214.76,0.68]
[1758682690476,5.31187933,214.8,214.73,26.0]
[1758682690679,5.31187933,214.8,214.73,4.65682576]
[1758682691405,5.31187933,214.78,214.73,4.65682576]
[1758682691570,5.31187933,214.76,214.69,0.68]
[1758682691772,5.31187933,214.76,214.68,0.2]
[1758682692183,0.71,214.81,214.7,26.0]
[1758682692387,5.31187933,214.79,214.71,0.68]
[1758682694477,5.31187933,214.77,214.7,4.65746443]
[1758682694774,4.65576247,214.79,214.69,26.72]
[1758682694775,5.31187933,214.75,214.69,26.0]
[1758682695098,5.31187933,214.75,214.68,0.2]
[1758682695673,5.31187933,214.75,214.68,42.50333102]
[1758682695880,6.02187933,214.79,214.69,0.72]
[1758682696803,5.31187933,214.77,214.7,4.65766185]
[1758682696999,5.31187933,214.77,214.7,16.30181648]
[1758682697197,5.31187933,214.79,214.71,0.72]
[1758682698101,4.65484203,214.84,214.73,26.0]
[1758682698301,5.31187933,214.82,214.73,26.0]
[1758682698504,0.71,214.81,214.73,26.72]
[1758682698801,5.31187933,214.78,214.72,4.65708533]
[1758682699004,6.02187933,214.78,214.72,4.65708533]
[1758682699203,6.02187933,214.78,214.7,5.37749455]
[1758682699204,5.31187933,214.76,214.7,5.37749455]
[1758682699506,5.31187933,214.76,214.7,4.65749455]
[1758682700789,5.31187933,214.76,214.7,16.30164918]
[1758682701190,6.02187933,214.78,214.7,16.30164918]
[1758682701388,0.7,214.83,214.73,26.0]
[1758682701621,5.31187933,214.81,214.74,0.69]
[1758682703510,5.31187933,214.81,214.75,4.65657741]
[1758682704115,5.31187933,214.81,214.75,16.29802094]
[1758682704324,5.31187933,214.83,214.75,16.29802094]
[1758682705721,0.7,214.88,214.78,26.0]
[1758682705887,6.01187933,214.88,214.8,26.0]
[1758682706316,5.31187933,214.88,214.81,0.69]
[1758682706618,39.36,214.89,214.81,0.69]
[1758682708229,5.31187933,214.94,214.86,26.69]
[1758682708802,40.04,214.95,214.86,26.69]
[1758682709037,5.31187933,214.96,214.88,26.0]
[1758682709221,5.31187933,214.96,214.89,0.69]
[1758682709402,39.34000001,214.97,214.89,0.69]
[1758682709929,39.34000001,214.97,214.9,4.65332712]
[1758682710421,43.99181996,214.97,214.9,4.65332712]
[1758682711531,39.34000001,214.97,214.9,4.65332712]
[1758682712227,39.32000001,214.97,214.9,4.65332712]
[1758682712609,39.32000001,214.97,214.82,23.27530025]
[1758682712610,5.31187933,214.93,214.82,0.69]
[1758682712810,5.31187933,214.91,214.82,0.69]
[1758682713019,44.63187933,214.91,214.82,0.69]
[1758682713536,5.31187933,214.87,214.79,26.0]
[1758682713707,6.01187933,214.87,214.79,26.0]
[1758682714230,6.01187933,214.87,214.81,26.0]
[1758682715820,10.66589605,214.87,214.81,30.65526242]
[1758682716027,6.01187933,214.87,214.81,30.65526242]
[1758682716224,5.31187933,214.87,214.81,31.34526242]
[1758682716410,5.31187933,214.87,214.81,30.65526242]
[1758682716807,5.31187933,214.87,214.81,4.65526242]
[1758682717028,5.31187933,214.87,214.81,5.34526242]
[1758682717425,10.66585929,214.87,214.8,26.0]
[1758682717618,5.31187933,214.85,214.78,0.69]
[1758682717819,5.31187933,214.85,214.78,5.3458826]
[1758682718131,10.66585929,214.87,214.78,5.3458826]
[1758682718542,8.82741794,214.87,214.78,5.3458826]
[1758682718733,8.82741794,214.87,214.78,16.98570008]
[1758682719037,3.47343798,214.87,214.79,0.69]
[1758682719844,3.47343798,214.87,214.8,4.65549348]
[1758682721241,8.12743857,214.87,214.8,4.65549348]
[1758682721933,4.65400059,214.87,214.8,4.65549348]
[1758682722240,42.73343798,214.87,214.8,4.65549348]
[1758682724022,47.38742099,214.87,214.8,4.65549348]
[1758682724441,26.0,214.84,214.73,0.69]
[1758682724639,26.0,214.84,214.68,0.2]
[1758682724640,3.47343798,214.8,214.69,4.6578788]
[1758682724844,0.7,214.79,214.7,0.69]
[1758682725015,3.47343798,214.78,214.7,0.69]
[1758682725847,8.129424,214.78,214.71,4.65744492]
[1758682726435,26.0,214.83,214.72,4.16343798]
[1758682726633,39.24,214.81,214.73,0.69]
[1758682727035,0.7,214.8,214.71,16.99105723]
[1758682727214,0.7,214.8,214.71,5.34744492]
[1758682727421,3.47343798,214.79,214.71,5.34744492]
[1758682727649,3.47343798,214.77,214.68,0.89]
[1758682727828,4.65657741,214.75,214.68,5.54791321]
[1758682728027,4.65657741,214.75,214.68,31.54791321]
[1758682728238,4.65657741,214.75,214.68,5.54791321]
[1758682728545,8.13001539,214.75,214.68,5.54791321]
[1758682728746,4.65657741,214.75,214.68,31.54791321]
[1758682730042,4.17343798,214.76,214.68,31.54791321]
[1758682730225,39.22,214.77,214.69,0.69]
[1758682730930,39.92,214.77,214.69,0.69]
[1758682732643,39.92,214.77,214.7,4.65766185]
[1758682732950,39.92,214.77,214.68,0.2]
[1758682732951,3.47343798,214.72,214.68,0.2]
[1758682733122,39.22,214.71,214.68,0.2]
[1758682733323,3.47343798,214.7,214.68,0.2]
[1758682733518,39.92,214.71,214.68,0.2]
[1758682734446,39.22,214.71,214.68,0.2]
[1758682735424,39.22,214.71,214.68,4.85804188]
[1758682735925,0.7,214.7,214.68,0.2]
[1758682737246,0.7,214.69,214.68,0.2]
[1758682737639,6.10488072,214.7,214.68,0.2]
[1758682737846,39.22,214.71,214.68,0.2]
[1758682738348,39.2,214.74,214.68,0.88]
[1758682739255,43.85691001,214.74,214.68,0.2]
[1758682740148,39.2,214.74,214.68,4.85809227]
[1758682741739,43.85679589,214.74,214.68,4.85809227]
[1758682742252,43.85679589,214.74,214.68,0.2]
[1758682742456,13.59559401,214.71,214.68,0.2]
[1758682742753,1.44705499,214.7,214.68,0.2]
[1758682743054,0.7,214.7,214.68,0.2]
[1758682743438,5.35768266,214.7,214.68,0.2]
[1758682743643,0.7,214.69,214.68,0.2]
[1758682744254,39.16,214.69,214.68,0.2]
[1758682745354,53.45559401,214.69,214.68,0.2]
[1758682745554,58.11347281,214.69,214.68,0.2]
[1758682750062,18.25347281,214.69,214.68,0.2]
[1758682750236,27.44705499,214.7,214.68,0.2]
[1758682750435,39.14,214.69,214.68,0.2]
[1758682751670,39.12,214.69,214.68,0.2]
[1758682753697,44.4978788,214.69,214.68,0.2]
[1758682753843,58.09347281,214.69,214.68,0.2]
[1758682756047,57.37347281,214.69,214.68,0.2]
[1758682756379,13.59559401,214.73,214.68,0.2]
[1758682756554,6.10384925,214.74,214.69,0.71]
[1758682756755,39.1,214.73,214.7,0.71]
[1758682757055,1.44705499,214.76,214.71,0.71]
[1758682757265,39.1,214.75,214.71,0.71]
[1758682758144,43.75659722,214.75,214.71,0.71]
[1758682760564,47.23399099,214.75,214.71,0.71]
[1758682762176,47.23399099,214.75,214.69,4.65786292]
[1758682763054,47.23399099,214.75,214.68,0.2]
[1758682763055,3.47739377,214.73,214.68,0.2]
[1758682763257,39.06,214.72,214.68,0.2]
[1758682763461,39.06,214.72,214.68,5.51806073]
[1758682763662,39.06,214.72,214.69,0.66]
[1758682764076,39.06,214.72,214.68,0.2]
[1758682764270,4.16739377,214.71,214.68,0.2]
[1758682764571,43.71727497,214.72,214.68,0.2]
[1758682764572,42.53739377,214.72,214.68,4.85805474]
[1758682764774,42.53739377,214.72,214.68,0.86]
[1758682764979,42.53739377,214.72,214.68,0.2]
[1758682765275,42.53739377,214.72,214.68,0.86]
[1758682766068,42.53739377,214.72,214.68,0.2]
[1758682766267,3.47739377,214.7,214.68,0.2]
[1758682766468,39.04,214.69,214.68,0.2]
[1758682771072,44.3878788,214.69,214.68,0.2]
[1758682771966,47.86527257,214.69,214.68,0.2]
[1758682772567,47.17527257,214.69,214.68,0.2]
[1758682773184,61.46086658,214.69,214.68,0.2]
[1758682775988,52.63559401,214.69,214.68,0.2]
[1758682776511,57.29347281,214.69,214.68,0.2]
[1758682777795,43.6978788,214.69,214.68,0.2]
[1758682785903,4.65766185,214.7,214.68,0.2]
[1758682786100,38.94,214.69,214.68,0.2]
[1758682787779,2.26130559,214.76,214.68,0.2]
[1758682787780,0.69,214.78,214.68,5.5179934]
[1758682787979,15.8568996,214.77,214.69,0.66]
[1758682788196,38.92,214.76,214.69,0.66]
[1758682789107,38.92,214.76,214.7,2.26130559]
[1758682789301,38.92,214.76,214.71,0.66]
[1758682789798,38.92,214.76,214.68,16.50323282]
[1758682790006,43.57647309,214.76,214.72,0.66]
[1758682790204,43.57647309,214.76,214.73,0.66]
[1758682791404,38.92,214.76,214.73,0.66]
[1758682792989,38.92,214.76,214.74,0.71]
[1758682794699,38.92,214.76,214.75,0.71]
[1758682794901,4.65484336,214.83,214.75,0.71]
[1758682795207,38.86,214.82,214.75,2.97130559]
[1758682795398,38.86,214.82,214.76,0.71]
[1758682795919,0.7,214.81,214.73,0.71]
[1758682796091,2.96130559,214.81,214.73,0.71]
[1758682796785,4.65549348,214.8,214.73,0.71]
[1758682797000,38.86,214.79,214.73,0.71]
[1758682797492,39.56,214.79,214.72,5.36719521]
[1758682798216,44.21582891,214.79,214.72,5.36719521]
[1758682798792,0.7,214.78,214.69,5.36769271]
[1758682798993,2.96130559,214.77,214.69,5.36769271]
[1758682799216,38.84,214.76,214.69,5.36769271]
[1758682799403,39.54,214.76,214.69,0.71]
[1758682799914,39.54,214.76,214.69,5.36780715]
[1758682800209,4.65679426,214.74,214.68,0.2]
[1758682800415,38.84,214.73,214.68,0.2]
[1758682800589,38.84,214.73,214.68,4.85807795]
[1758682800796,0.7,214.78,214.69,0.71]
[1758682800990,38.82,214.77,214.69,2.97130559]
[1758682801296,38.82,214.77,214.7,0.71]
[1758682801908,43.47617036,214.77,214.7,5.36749954]
[1758682802197,4.65542074,214.81,214.71,2.97130559]
[1758682802392,0.7,214.86,214.73,26.0]
[1758682802614,0.7,214.86,214.76,2.26130559]
[1758682802615,38.82,214.85,214.76,2.26130559]
[1758682802827,38.82,214.85,214.77,0.71]
[1758682803190,41.08130559,214.85,214.77,0.71]
[1758682803403,2.26130559,214.83,214.74,0.71]
[1758682803612,26.7,214.82,214.74,0.71]
[1758682803807,4.65549348,214.8,214.71,5.36736501]
[1758682804006,0.7,214.79,214.71,5.36736501]
[1758682804410,15.8568996,214.79,214.71,0.71]
[1758682804609,13.59559401,214.76,214.68,0.2]
[1758682804814,2.26130559,214.74,214.68,0.2]
[1758682804999,0.7,214.73,214.68,0.2]
[1758682805515,0.7,214.73,214.68,0.91]
[1758682805819,4.65722801,214.72,214.68,0.2]
[1758682806028,38.8,214.71,214.68,0.2]
[1758682807913,43.45759531,214.71,214.68,0.2]
[1758682810543,38.8,214.71,214.68,0.2]
[1758682811118,38.8,214.71,214.68,0.91]
[1758682811404,38.8,214.71,214.68,0.2]
[1758682811604,4.65673643,214.75,214.69,0.71]
[1758682811837,38.78,214.72,214.69,0.71]
[1758682813921,0.71,214.71,214.68,0.2]
[1758682815506,43.43724067,214.72,214.68,0.2]
[1758682816132,38.78,214.72,214.68,0.2]
[1758682816337,38.78,214.72,214.68,0.91]
[1758682817444,43.4372426,214.72,214.68,0.91]
[1758682817729,43.4372426,214.72,214.68,0.2]
[1758682817932,0.71,214.71,214.68,0.2]
[1758682818129,0.71,214.7,214.68,0.2]
[1758682818338,38.72,214.69,214.68,0.2]
[1758682819326,39.43,214.69,214.68,0.2]
[1758682819630,44.0878788,214.69,214.68,0.2]
[1758682820030,57.68347281,214.69,214.68,0.2]
[1758682820416,44.0878788,214.69,214.68,0.2]
[1758682822542,38.72,214.69,214.68,0.2]
[1758682827048,59.9347784,214.69,214.68,0.2]
[1758682839337,59.2347784,214.69,214.68,0.2]
[1758682840551,58.42107449,214.69,214.68,0.2]
[1758682841451,59.12107449,214.69,214.68,0.2]
[1758682841936,63.78090345,214.69,214.68,0.2]
[1758682842137,63.78090345,214.69,214.68,1e-08]
[1758682842331,63.78090345,214.69,214.49,13.10286199]
[1758682842332,13.59559401,214.61,214.49,13.10286199]
[1758682842548,1.44760168,214.59,214.55,0.69]
[1758682842752,38.56,214.58,214.56,0.69]
[1758682842949,38.56,214.58,214.49,6.10974275]
[1758682843136,38.56,214.58,214.54,0.69]
[1758682843529,18.25607776,214.57,214.54,0.69]
[1758682843730,38.56,214.56,214.54,0.69]
[1758682844433,38.56,214.56,214.52,0.69]
[1758682844742,38.56,214.56,214.53,0.69]
[1758682845146,38.56,214.56,214.54,0.69]
[1758682845532,43.22088814,214.56,214.54,0.69]
[1758682846753,43.22088814,214.56,214.5,4.86198394]
[1758682847067,43.22088814,214.56,214.54,0.69]
[1758682847936,43.22088814,214.56,214.5,4.86198394]
[1758682848254,6.10854769,214.55,214.51,0.69]
[1758682848460,38.56,214.54,214.51,0.69]
[1758682848761,38.56,214.54,214.52,0.69]
[1758682848929,38.56,214.54,214.5,4.86198394]
[1758682849132,38.56,214.54,214.53,0.69]
[1758682849756,38.54,214.55,214.53,5.35135272]
[1758682850056,38.54,214.55,214.54,0.69]
[1758682850748,1.44760168,214.67,214.57,26.0]
[1758682851052,4.65762322,214.71,214.63,1.44760168]
[1758682851249,25.82,214.7,214.64,0.69]
[1758682851642,25.82,214.7,214.64,2.13760168]
[1758682852062,30.47777443,214.7,214.64,2.13760168]
[1758682855651,42.78192906,214.7,214.62,1.44760168]
[1758682855831,14.25559401,214.69,214.62,0.69]
[1758682856661,14.25559401,214.69,214.6,1.44760168]
[1758682856662,14.25559401,214.69,214.6,2.13760168]
[1758682856850,0.66,214.68,214.6,2.13760168]
[1758682857043,43.15831275,214.67,214.6,2.13760168]
[1758682857653,0.66,214.66,214.6,2.13760168]
[1758682858863,4.65874679,214.65,214.6,2.13760168]
[1758682859166,38.48,214.64,214.61,0.69]
[1758682859468,38.48,214.64,214.6,1.44760168]
[1758682859653,38.48,214.64,214.6,2.13760168]
[1758682860066,43.13901106,214.64,214.6,2.13760168]
[1758682860462,43.13901106,214.64,214.61,0.69]
[1758682863875,43.13901106,214.64,214.62,1.44760168]
[1758682870854,43.78901106,214.64,214.62,1.44760168]
[1758682871052,43.78901106,214.64,214.6,1.44760168]
[1758682871053,0.65,214.63,214.6,1.44760168]
[1758682871363,38.4,214.62,214.6,1.44760168]
[1758682872264,0.65,214.61,214.58,1.44760168]
[1758682872470,26.0,214.56,214.52,2.14760168]
[1758682872771,38.38,214.55,214.5,1.64760168]
[1758682873186,39.03,214.55,214.5,1.64760168]
[1758682873352,0.65,214.54,214.5,1.64760168]
[1758682873556,39.03,214.53,214.5,0.2]
[1758682873875,41.04319569,214.51,214.5,0.2]
[1758682874057,84.08498301,214.51,214.5,0.2]
[1758682874252,84.73498301,214.51,214.5,0.2]
[1758682874851,38.38,214.51,214.5,0.2]
[1758682875557,38.36,214.51,214.5,0.2]
[1758682875762,38.36,214.51,214.5,0.9]
[1758682879610,20.7432678,214.6,214.5,0.9]
[1758682879611,0.65,214.6,214.5,7.00960634]
[1758682879777,38.36,214.59,214.51,0.7]
[1758682880087,22.82,214.58,214.51,0.7]
[1758682880668,22.82,214.58,214.52,4.66157001]
[1758682880889,22.82,214.58,214.53,0.7]
[1758682882305,22.82,214.58,214.54,4.66113545]
[1758682882508,22.82,214.58,214.55,0.7]
[1758682883214,22.82,214.58,214.52,0.7]
[1758682883392,27.48028284,214.58,214.52,5.36147345]
[1758682883598,22.82,214.58,214.53,0.7]
[1758682884090,22.82,214.58,214.54,0.7]
[1758682884650,38.32,214.58,214.54,0.7]
[1758682885284,38.32,214.58,214.55,0.7]
[1758682885486,38.32,214.58,214.5,6.30945135]
[1758682885685,38.32,214.58,214.52,16.31549505]
[1758682886208,38.32,214.58,214.53,0.7]
[1758682886799,38.32,214.58,214.54,4.66113545]
[1758682887000,38.32,214.58,214.55,0.7]
[1758682887307,38.32,214.58,214.54,4.66113545]
[1758682887516,38.32,214.58,214.56,0.7]
[1758682888028,42.9803016,214.58,214.52,5.36144346]
[1758682888310,43.7003016,214.58,214.52,5.36144346]
[1758682893634,0.72,214.57,214.5,0.2]
[1758682894131,2.16867074,214.57,214.5,0.2]
[1758682895217,4.66070096,214.56,214.5,0.2]
[1758682895408,0.72,214.55,214.5,0.2]
[1758682895610,38.26,214.56,214.51,0.7]
[1758682896036,0.72,214.59,214.51,0.7]
[1758682896227,38.24,214.58,214.51,0.7]
[1758682896923,0.72,214.63,214.52,13.59559401]
[1758682897115,38.96,214.63,214.53,0.7]
[1758682897316,38.96,214.63,214.54,16.31397408]
[1758682897516,38.96,214.63,214.55,0.7]
[1758682899414,38.96,214.63,214.56,4.66070096]
[1758682899651,38.96,214.63,214.56,5.36070096]
[1758682900141,0.72,214.62,214.56,4.66070096]
[1758682900434,42.89921455,214.63,214.54,4.66096676]
[1758682900435,0.72,214.61,214.54,4.66096676]
[1758682901018,0.72,214.6,214.54,4.66096676]
[1758682901220,0.72,214.59,214.54,4.66096676]
[1758682901419,0.72,214.58,214.52,4.66157001]
[1758682902121,0.72,214.58,214.52,5.36157001]
[1758682903434,38.94,214.58,214.52,5.36157001]
[1758682904545,38.94,214.58,214.52,17.01549505]
[1758682905150,38.22,214.58,214.53,0.7]
[1758682905334,38.22,214.58,214.53,11.65338181]
[1758682905530,38.22,214.58,214.54,0.7]
[1758682905921,11.64671041,214.66,214.55,0.7]
[1758682906221,38.9,214.65,214.55,0.7]
[1758682906548,43.55874679,214.65,214.56,26.0]